bitfinex-derivatives/quotes_BNBF0:USTF0_20250326
["timestamp","ask_amount","ask_price","bid_price","bid_amount"]
[1742986014714,0.932,630.57,630.48,1.18625644]
[1742986019121,0.932,630.57,630.51,1.18625644]
[1742986019325,1.19771697,630.56,630.51,1.18625644]
[1742986019525,1.19771697,630.55,630.51,1.18625644]
[1742986019822,0.932,630.57,630.51,1.18625644]
[1742986020022,1.19776584,630.56,630.51,1.18625644]
[1742986020219,1.19776584,630.55,630.51,1.18625644]
[1742986020423,0.932,630.57,630.51,1.18625644]
[1742986020625,1.19783226,630.56,630.51,1.18625644]
[1742986020821,1.19783226,630.55,630.51,1.18625644]
[1742986021022,0.932,630.57,630.51,1.18625644]
[1742986021220,0.932,630.57,630.31,1.1840056]
[1742986021221,1.19784099,630.56,630.39,1.18625644]
[1742986021425,1.19784099,630.55,630.39,1.18625644]
[1742986021625,1.19784099,630.54,630.39,1.18625644]
[1742986021822,0.932,630.57,630.39,1.18625644]
[1742986022025,1.19790184,630.56,630.39,1.18625644]
[1742986022222,1.19790184,630.55,630.39,1.18625644]
[1742986022424,1.19790184,630.54,630.39,1.18625644]
[1742986022626,0.932,630.57,630.39,1.18625644]
[1742986022825,1.19794776,630.56,630.39,1.18625644]
[1742986023021,1.19794776,630.55,630.39,1.18625644]
[1742986023223,1.19794776,630.54,630.39,1.18625644]
[1742986023427,0.932,630.57,630.39,1.18625644]
[1742986023626,1.19802101,630.56,630.39,1.18625644]
[1742986023927,1.19802101,630.55,630.39,1.18625644]
[1742986024129,1.19802101,630.55,630.0,1.1840056]
[1742986024130,1.19802101,630.54,630.34,1.18625644]
[1742986024327,0.932,630.57,630.34,1.18625644]
[1742986024524,1.19804346,630.56,630.34,1.18625644]
[1742986024830,1.19804346,630.55,630.34,1.18625644]
[1742986025026,1.19804346,630.54,630.34,1.18625644]
[1742986025231,0.932,630.57,630.34,1.18625644]
[1742986025431,1.19805847,630.56,630.34,1.18625644]
[1742986025632,0.932,630.57,630.03,0.27597255]
[1742986025633,1.19805847,630.55,630.4,1.18625644]
[1742986025834,1.19805847,630.54,630.4,1.18625644]
[1742986026031,0.578,630.6,630.4,1.18625644]
[1742986026227,1.1980575,630.59,630.4,1.18625644]
[1742986026532,1.1980575,630.58,630.4,1.18625644]
[1742986026833,1.1980575,630.57,630.4,1.18625644]
[1742986027032,0.578,630.6,630.4,1.18625644]
[1742986027226,1.19807448,630.59,630.4,1.18625644]
[1742986027429,1.19807448,630.58,630.4,1.18625644]
[1742986027625,1.19807448,630.57,630.4,1.18625644]
[1742986027831,0.578,630.6,630.43,1.18625644]
[1742986028033,1.19809833,630.59,630.43,1.18625644]
[1742986028335,1.19809833,630.58,630.43,1.18625644]
[1742986028528,1.19809833,630.57,630.43,1.18625644]
[1742986028733,1.118,630.59,630.43,1.18625644]
[1742986029041,1.19816581,630.58,630.43,1.18625644]
[1742986029332,1.19816581,630.57,630.43,1.18625644]
[1742986029534,1.19816581,630.56,630.43,1.18625644]
[1742986029729,1.118,630.59,630.43,1.18625644]
[1742986029942,1.19822027,630.58,630.43,1.18625644]
[1742986030236,1.19822027,630.57,630.53,1.18625644]
[1742986030436,1.19822027,630.56,630.53,1.18625644]
[1742986030641,1.118,630.59,630.53,1.18625644]
[1742986030831,1.19825045,630.58,630.53,1.18625644]
[1742986031028,1.19825045,630.57,630.53,1.18625644]
[1742986031229,1.118,630.59,630.53,1.18625644]
[1742986031442,1.19832044,630.58,630.53,1.18625644]
[1742986031630,1.19832044,630.57,630.53,1.18625644]
[1742986031830,1.19832044,630.56,630.53,1.18625644]
[1742986032036,1.118,630.59,630.53,1.18625644]
[1742986032234,1.19833026,630.58,630.53,1.18625644]
[1742986032442,1.19833026,630.57,630.53,1.18625644]
[1742986032644,1.19833026,630.56,630.53,1.18625644]
[1742986032838,1.118,630.59,630.53,1.18625644]
[1742986033035,1.19848323,630.58,630.53,1.18625644]
[1742986033245,1.19848323,630.57,630.49,1.18625644]
[1742986033541,1.118,630.59,630.49,1.18625644]
[1742986033839,1.19868022,630.58,630.49,1.18625644]
[1742986034034,1.19868022,630.57,630.49,1.18625644]
[1742986034232,1.118,630.59,630.49,1.18625644]
[1742986034438,1.19867475,630.58,630.49,1.18625644]
[1742986034637,1.19867475,630.57,630.49,1.18625644]
[1742986034838,1.19867475,630.56,630.49,1.18625644]
[1742986035136,1.19351834,630.55,630.49,1.18625644]
[1742986035338,1.19351834,630.54,630.49,1.18625644]
[1742986035540,1.118,630.59,630.49,1.18625644]
[1742986036243,1.118,630.59,630.51,1.18625644]
[1742986037448,1.118,630.59,630.48,1.18625644]
[1742986041442,1.118,630.59,630.04,1.01058919]
[1742986041443,1.118,630.59,630.52,1.18625644]
[1742986043851,1.118,630.59,630.55,1.18625644]
[1742986045849,1.118,630.59,630.52,1.18625644]
[1742986047153,1.19863098,630.58,630.52,1.18625644]
[1742986047354,1.19863098,630.57,630.52,1.18625644]
[1742986047653,1.19863098,630.56,630.52,1.18625644]
[1742986047853,1.19863098,630.55,630.52,1.18625644]
[1742986048154,1.19863098,630.54,630.52,1.18625644]
[1742986048350,1.19863098,630.53,630.52,1.18625644]
[1742986048552,0.435,630.64,630.52,1.18625644]
[1742986048749,1.19860648,630.63,630.52,1.18625644]
[1742986048947,1.19860648,630.62,630.52,1.18625644]
[1742986049250,1.19860648,630.61,630.52,1.18625644]
[1742986049450,1.19860648,630.6,630.52,1.18625644]
[1742986049654,1.19860648,630.59,630.52,1.18625644]
[1742986049857,1.19860648,630.58,630.52,1.18625644]
[1742986050054,0.435,630.64,630.52,1.18625644]
[1742986050055,1.19860648,630.57,630.52,1.18625644]
[1742986050252,1.19860648,630.56,630.52,1.18625644]
[1742986050454,1.19860648,630.55,630.52,1.18625644]
[1742986050754,0.435,630.64,630.52,1.18625644]
[1742986050949,1.19862067,630.63,630.52,1.18625644]
[1742986051152,1.19862067,630.62,630.52,1.18625644]
[1742986051350,1.19862067,630.61,630.52,1.18625644]
[1742986051553,1.19862067,630.6,630.48,1.18625644]
[1742986051765,1.19862067,630.59,630.48,1.18625644]
[1742986051955,1.19862067,630.58,630.48,1.18625644]
[1742986052160,1.19862067,630.57,630.48,1.18625644]
[1742986052462,0.435,630.64,630.48,1.18625644]
[1742986052463,1.19862067,630.56,630.48,1.18625644]
[1742986052663,1.19862067,630.55,630.48,1.18625644]
[1742986052859,1.19862067,630.54,630.48,1.18625644]
[1742986053059,1.19862067,630.53,630.48,1.18625644]
[1742986053360,1.184,630.6,630.48,1.18625644]
[1742986053561,1.19862855,630.59,630.48,1.18625644]
[1742986053753,1.19862855,630.58,630.48,1.18625644]
[1742986053954,1.19862855,630.57,630.48,1.18625644]
[1742986054261,1.19862855,630.56,630.48,1.18625644]
[1742986054454,1.19862855,630.55,630.48,1.18625644]
[1742986054658,1.19862855,630.54,630.45,1.18625644]
[1742986054857,1.184,630.6,630.45,1.18625644]
[1742986055256,1.19861801,630.59,630.45,1.18625644]
[1742986055456,1.19861801,630.58,630.45,1.18625644]
[1742986055658,1.19861801,630.57,630.45,1.18625644]
[1742986055854,1.19861801,630.56,630.45,1.18625644]
[1742986056056,1.19861801,630.55,630.45,1.18625644]
[1742986056256,1.19861801,630.54,630.45,1.18625644]
[1742986056459,1.184,630.6,630.45,1.18625644]
[1742986056663,1.19861635,630.59,630.45,1.18625644]
[1742986056861,1.19861635,630.58,630.45,1.18625644]
[1742986057063,1.19861576,630.57,630.47,1.18625644]
[1742986057265,1.19861576,630.56,630.47,1.18625644]
[1742986057458,1.19861576,630.55,630.47,1.18625644]
[1742986057663,1.19861576,630.54,630.47,1.18625644]
[1742986057863,1.19861576,630.53,630.47,1.18625644]
[1742986058163,1.184,630.6,630.47,1.18625644]
[1742986058366,1.19861041,630.59,630.47,1.18625644]
[1742986058566,1.19861041,630.58,630.47,1.18625644]
[1742986058770,1.19861041,630.57,630.47,1.18625644]
[1742986059065,1.19861041,630.56,630.47,1.18625644]
[1742986059261,1.19861041,630.55,630.47,1.18625644]
[1742986059468,1.19861041,630.54,630.47,1.18625644]
[1742986059665,1.19861041,630.53,630.47,1.18625644]
[1742986059865,1.184,630.6,630.33,1.1840056]
[1742986060161,1.19861093,630.59,630.34,0.26363341]
[1742986060362,1.184,630.6,630.34,0.26363341]
[1742986060363,1.19861093,630.58,630.34,0.26363341]
[1742986060559,1.184,630.6,630.34,0.26363341]
[1742986060560,1.19861093,630.57,630.34,0.26363341]
[1742986060761,1.19861093,630.56,630.34,0.26363341]
[1742986060965,1.19861069,630.55,630.34,0.26363341]
[1742986061164,1.184,630.6,630.34,0.26363341]
[1742986061365,1.184,630.6,630.04,1.01058919]
[1742986061366,1.19858222,630.59,630.4,1.1840056]
[1742986061565,1.19858222,630.58,630.4,1.1840056]
[1742986061767,1.19858222,630.57,630.4,1.1840056]
[1742986061973,1.19858222,630.56,630.4,1.1840056]
[1742986062162,1.19858222,630.55,630.4,1.1840056]
[1742986062362,1.184,630.6,630.4,1.1840056]
[1742986062567,1.19844082,630.59,630.4,1.1840056]
[1742986062867,1.19844082,630.58,630.4,1.1840056]
[1742986063072,1.19844082,630.57,630.4,1.1840056]
[1742986063263,1.19844082,630.56,630.4,1.1840056]
[1742986063568,0.435,630.64,630.47,1.18666948]
[1742986063768,1.19837823,630.63,630.47,1.18666948]
[1742986063962,1.19837823,630.62,630.47,1.18666948]
[1742986064160,1.19837823,630.61,630.47,1.18666948]
[1742986064362,1.19836422,630.6,630.47,1.18666948]
[1742986064567,1.19836422,630.59,630.47,1.18666948]
[1742986064778,1.19830292,630.58,630.47,1.18666948]
[1742986064967,0.435,630.64,630.47,1.18666948]
[1742986065164,1.19828982,630.63,630.47,1.18666948]
[1742986065364,1.19828982,630.62,630.47,1.18666948]
[1742986065562,1.19828982,630.61,630.47,1.18666948]
[1742986065766,1.19828982,630.6,630.47,1.18666948]
[1742986066067,1.19828982,630.59,630.47,1.18666948]
[1742986066267,0.435,630.64,630.47,1.18666948]
[1742986066463,1.1981716,630.63,630.47,1.18666948]
[1742986066668,1.19817003,630.62,630.47,1.18666948]
[1742986066868,1.19817003,630.61,630.47,1.18666948]
[1742986067068,1.19817003,630.6,630.47,1.18666948]
[1742986067270,1.19817003,630.59,630.47,1.18666948]
[1742986067569,0.835,630.61,630.47,1.18666948]
[1742986067770,1.19812853,630.6,630.47,1.18666948]
[1742986067971,1.19812853,630.59,630.46,1.18666948]
[1742986068168,0.835,630.61,630.46,1.18666948]
[1742986068365,1.19812081,630.6,630.46,1.18666948]
[1742986068568,1.19812081,630.59,630.46,1.18666948]
[1742986068771,0.835,630.61,630.46,1.18666948]
[1742986068964,1.1980837,630.6,630.46,1.18666948]
[1742986069169,1.1980837,630.59,630.46,1.18666948]
[1742986069366,0.835,630.61,630.46,1.18666948]
[1742986069570,1.19805001,630.6,630.46,1.18666948]
[1742986069874,1.19805001,630.59,630.58,1.18666948]
[1742986071970,1.19805001,630.59,630.43,1.1840056]
[1742986072171,1.19805001,630.58,630.43,1.1840056]
[1742986072371,1.19795955,630.57,630.43,1.1840056]
[1742986072571,0.578,630.6,630.43,1.1840056]
[1742986072871,1.19795996,630.59,630.43,1.1840056]
[1742986073073,1.19795996,630.58,630.43,1.1840056]
[1742986073271,0.578,630.6,630.43,1.1840056]
[1742986076773,0.578,630.6,630.21,1.18551051]
[1742986076971,0.578,630.6,630.22,0.26355503]
[1742986078474,0.578,630.6,630.45,1.18551051]
[1742986079269,0.435,630.59,630.45,1.18551051]
[1742986080374,0.435,630.59,630.19,1.1840056]
[1742986080375,0.435,630.59,630.44,1.18551051]
[1742986081773,0.435,630.59,630.45,0.26354741]
[1742986082571,0.435,630.59,630.52,1.18551051]
[1742986082875,1.208,630.58,630.52,1.18551051]
[1742986085175,1.208,630.58,630.52,1.17479068]
[1742986086979,1.208,630.58,630.31,1.1840056]
[1742986087177,1.208,630.58,630.32,0.26403968]
[1742986090987,1.208,630.58,630.33,1.1840056]
[1742986091183,1.208,630.58,630.34,0.26403968]
[1742986091586,1.208,630.58,630.33,1.1840056]
[1742986092289,1.786,630.58,630.33,1.1840056]
[1742986094492,1.786,630.58,630.16,1.1840056]
[1742986094690,1.786,630.58,630.17,0.26414914]
[1742986095785,1.786,630.58,630.18,0.26416312]
[1742986096086,1.786,630.58,630.16,1.1840056]
[1742986096087,1.786,630.58,630.19,0.26416312]
[1742986096291,1.786,630.58,630.17,0.26416312]
[1742986096492,1.786,630.58,630.16,1.1840056]
[1742986096791,1.786,630.58,630.17,0.26416364]
[1742986099391,1.786,630.58,630.16,0.26416364]
[1742986100994,1.786,630.58,630.2,1.1840056]
[1742986101191,1.786,630.58,630.21,0.26416364]
[1742986102497,1.786,630.58,630.22,0.26410436]
[1742986102789,1.786,630.58,630.2,1.1840056]
[1742986102790,1.786,630.58,630.23,0.26410436]
[1742986102995,1.786,630.58,630.24,0.26410436]
[1742986103194,1.786,630.58,629.88,1.42703301]
[1742986103195,1.786,630.58,630.35,1.1840056]
[1742986103396,1.786,630.58,630.36,0.26410436]
[1742986104092,1.786,630.58,630.37,0.26409491]
[1742986104291,1.786,630.58,630.36,0.26409491]
[1742986104497,1.786,630.58,630.37,0.26409491]
[1742986104697,1.786,630.58,630.38,0.26409491]
[1742986104898,1.786,630.58,630.39,0.26409491]
[1742986105092,1.786,630.58,630.4,0.26409491]
[1742986105298,1.786,630.58,630.36,0.26409491]
[1742986105493,1.786,630.58,630.42,1.1840056]
[1742986105796,1.786,630.58,630.43,0.26409491]
[1742986105995,2.221,630.58,630.43,0.26409491]
[1742986106398,2.221,630.58,630.42,1.1840056]
[1742986108393,2.221,630.58,630.39,1.1840056]
[1742986108596,2.221,630.58,630.4,0.26412792]
[1742986110497,2.221,630.58,630.4,1.44813352]
[1742986110699,2.221,630.58,630.41,0.26412792]
[1742986111993,2.221,630.58,630.4,1.1840056]
[1742986114397,2.221,630.58,630.36,1.1840056]
[1742986116499,2.221,630.58,630.29,1.1840056]
[1742986116895,2.221,630.58,630.3,0.26413208]
[1742986117599,2.221,630.58,630.29,1.1840056]
[1742986117799,2.221,630.58,630.3,0.26413091]
[1742986118504,2.221,630.58,630.29,1.1840056]
[1742986118704,2.221,630.58,630.3,0.26412353]
[1742986118906,2.221,630.58,630.3,1.1840056]
[1742986119699,2.221,630.58,630.31,0.26410977]
[1742986120103,2.221,630.58,630.3,1.1840056]
[1742986120704,2.221,630.58,630.41,1.1840056]
[1742986123710,2.221,630.58,625.84,8.60263217]
[1742986123711,2.221,630.58,630.36,1.1840056]
[1742986123910,2.221,630.58,630.37,0.26411726]
[1742986124107,2.221,630.58,630.38,0.2641177]
[1742986124307,2.221,630.58,630.39,0.2641177]
[1742986124507,2.221,630.58,630.4,0.2641177]
[1742986124811,2.221,630.58,630.36,1.1840056]
[1742986125112,2.221,630.58,630.37,0.26412093]
[1742986125113,1.643,630.58,630.37,0.26412093]
[1742986125714,1.643,630.58,630.38,1.1840056]
[1742986127313,2.221,630.58,630.38,1.1840056]
[1742986127615,2.221,630.58,630.34,1.1840056]
[1742986127816,2.221,630.58,630.35,0.26413507]
[1742986129518,2.221,630.58,630.4,1.1840056]
[1742986131813,2.221,630.58,630.31,1.1840056]
[1742986131814,2.221,630.58,630.42,1.1840056]
[1742986133821,2.221,630.58,630.44,1.1840056]
[1742986136016,2.221,630.58,630.5,1.1840056]
[1742986136418,0.578,630.58,630.5,1.1840056]
[1742986138122,0.578,630.58,630.46,1.1840056]
[1742986138823,1.013,630.58,630.46,1.1840056]
[1742986139825,1.943,630.58,630.46,1.1840056]
[1742986140025,1.943,630.58,630.39,1.1840056]
[1742986142527,1.943,630.58,630.4,0.31725888]
[1742986143026,1.943,630.58,630.41,0.26374628]
[1742986143225,1.943,630.58,630.42,0.31724881]
[1742986143525,1.943,630.58,630.43,0.26374628]
[1742986145627,1.943,630.58,630.44,0.31723875]
[1742986146028,1.943,630.58,630.45,0.26374628]
[1742986146924,1.943,630.58,630.5,1.1840056]
[1742986147122,1.943,630.58,630.51,0.26374628]
[1742986147525,1.943,630.58,630.5,1.1840056]
[1742986147526,1.943,630.58,630.52,0.26368955]
[1742986147723,1.943,630.58,630.5,1.1840056]
[1742986147724,1.943,630.58,630.53,0.26368955]
[1742986148022,1.943,630.58,630.54,0.26368955]
[1742986148227,1.943,630.58,630.55,0.26368955]
[1742986148428,1.943,630.58,630.51,0.26368955]
[1742986148619,1.943,630.58,630.5,1.1840056]
[1742986148620,1.943,630.58,630.52,0.26368955]
[1742986148821,1.943,630.58,630.53,0.26368955]
[1742986149025,1.943,630.58,630.51,0.26368955]
[1742986149222,1.943,630.58,630.52,0.26368955]
[1742986149421,1.943,630.58,630.51,0.26368955]
[1742986150428,1.943,630.58,630.45,0.26368955]
[1742986150728,1.943,630.58,630.46,0.58091824]
[1742986150930,1.943,630.58,630.47,0.5809132]
[1742986151222,1.943,630.58,630.48,0.58090817]
[1742986151428,1.365,630.58,630.49,0.58090314]
[1742986151629,1.365,630.58,630.5,0.58089811]
[1742986151824,1.365,630.58,630.51,0.58089308]
[1742986152128,1.365,630.58,630.52,0.58088805]
[1742986152330,1.365,630.58,630.53,0.31719347]
[1742986152631,1.365,630.58,630.54,0.26368955]
[1742986153024,0.435,630.58,630.54,0.26368955]
[1742986153622,1.190163,631.44,630.54,0.26368955]
[1742986153824,1.190163,631.43,630.54,0.26368955]
[1742986154131,0.577,631.42,630.54,0.26368955]
[1742986155628,0.953,631.41,630.54,0.26368955]
[1742986156530,0.435,631.4,630.54,0.26368955]
[1742986157329,0.435,631.4,630.53,0.31719347]
[1742986157526,0.435,631.4,630.54,0.26361838]
[1742986159031,0.435,631.4,630.53,0.31719347]
[1742986159232,0.435,631.4,630.54,0.26360035]
[1742986160836,0.435,631.4,630.53,0.31719347]
[1742986162033,1.18794958,631.39,630.53,0.31719347]
[1742986162233,1.18794958,631.38,630.53,0.31719347]
[1742986162431,1.1877934,631.37,630.53,0.31719347]
[1742986162631,1.1877934,631.36,630.53,0.31719347]
[1742986162833,0.435,631.4,630.53,0.31719347]
[1742986162834,1.1877934,631.35,630.53,0.31719347]
[1742986163033,1.1877934,631.34,630.53,0.31719347]
[1742986163228,1.1877934,631.33,630.53,0.31719347]
[1742986163433,1.1877934,631.32,630.53,0.31719347]
[1742986163626,0.435,631.4,630.53,0.31719347]
[1742986163829,1.18763821,631.39,630.53,0.31719347]
[1742986164031,1.18763821,631.38,630.53,0.31719347]
[1742986164229,1.18763821,631.37,630.53,0.31719347]
[1742986164534,1.18763821,631.36,630.53,0.31719347]
[1742986164730,1.18763821,631.35,630.53,0.31719347]
[1742986164936,1.18763821,631.34,630.53,0.31719347]
[1742986165236,1.18763821,631.33,630.53,0.31719347]
[1742986165434,1.18763821,631.32,630.53,0.31719347]
[1742986165634,0.435,631.4,630.53,0.31719347]
[1742986165830,1.18737622,631.39,630.53,0.31719347]
[1742986166134,1.18737622,631.38,630.53,0.31719347]
[1742986166337,1.18738144,631.37,630.53,0.31719347]
[1742986166631,1.18738144,631.36,630.53,0.31719347]
[1742986166931,1.18738144,631.35,630.54,0.26360692]
[1742986167137,1.18738144,631.34,630.55,0.31718341]
[1742986167436,1.18738144,631.33,630.56,0.26359917]
[1742986167636,1.18738144,631.32,630.57,0.31717335]
[1742986167836,0.435,631.4,630.58,0.26359917]
[1742986168137,1.18717287,631.39,630.58,0.26359917]
[1742986168333,1.18717287,631.38,630.57,0.31717335]
[1742986168531,1.18717287,631.38,630.58,0.26360421]
[1742986168532,1.18717287,631.37,630.58,0.26360421]
[1742986168735,1.18717287,631.36,630.58,0.26360421]
[1742986168936,1.18717287,631.35,630.57,0.31717335]
[1742986169130,1.18717287,631.34,630.58,0.26358311]
[1742986169329,1.18717287,631.33,630.58,0.26358311]
[1742986169534,0.578,631.38,630.58,0.26358311]
[1742986169835,1.1870332,631.37,630.58,0.26358311]
[1742986170036,1.1870332,631.36,630.58,0.26358311]
[1742986170232,1.18703492,631.35,630.58,0.26358311]
[1742986170429,1.18703492,631.34,630.58,0.26358311]
[1742986170632,1.18703492,631.33,630.58,0.26358311]
[1742986170837,1.18703492,631.32,630.58,0.26358311]
[1742986171032,0.578,631.38,630.58,0.26358311]
[1742986171232,1.18698537,631.37,630.58,0.26358311]
[1742986171436,0.578,631.38,630.58,0.26358311]
[1742986171437,1.18698537,631.36,630.58,0.26358311]
[1742986171635,1.18698537,631.35,630.58,0.26358311]
[1742986171939,1.18698537,631.34,630.58,0.26358311]
[1742986172139,0.578,631.38,630.58,1.44758871]
[1742986172140,1.18698537,631.33,630.58,1.44758871]
[1742986172438,0.578,631.38,630.59,0.26354806]
[1742986172637,1.1869414,631.37,630.59,0.26354806]
[1742986172834,1.1869414,631.36,630.59,0.26354806]
[1742986173033,1.6219414,631.35,630.59,0.26354806]
[1742986173236,1.1869414,631.34,630.59,0.26354806]
[1742986173539,1.1869414,631.33,630.59,0.26354806]
[1742986173838,0.435,631.35,630.59,0.26354806]
[1742986174038,1.18694218,631.34,630.59,0.26354806]
[1742986174240,1.18694218,631.33,630.67,1.1840056]
[1742986174434,0.435,631.35,630.68,0.26354806]
[1742986174738,1.18694451,631.34,630.68,0.26354806]
[1742986174940,0.435,631.35,630.68,0.26354806]
[1742986175141,1.18694552,631.34,630.68,0.26354806]
[1742986175436,0.435,631.35,630.68,0.26354806]
[1742986175639,1.18696779,631.34,630.68,0.26354806]
[1742986175836,0.435,631.35,630.68,0.26354806]
[1742986176034,1.18696654,631.34,630.68,0.26354806]
[1742986176237,0.435,631.35,630.68,0.26354806]
[1742986176441,0.435,631.35,630.71,1.1840056]
[1742986176641,0.435,631.35,630.72,0.26354806]
[1742986179138,0.435,631.35,630.79,1.1840056]
[1742986179340,0.435,631.35,630.8,0.26354806]
[1742986180636,0.435,631.35,630.81,0.26353415]
[1742986180840,0.435,631.35,630.8,0.26353415]
[1742986181037,0.435,631.35,630.81,0.26353415]
[1742986181241,0.435,631.35,630.8,0.26353415]
[1742986182141,0.435,631.35,630.84,1.1840056]
[1742986184443,1.18769141,631.34,630.84,1.1840056]
[1742986184640,1.18769141,631.33,630.84,1.1840056]
[1742986184844,1.18769141,631.32,630.84,1.1840056]
[1742986185144,1.18769141,631.31,630.84,1.1840056]
[1742986185344,0.435,631.35,630.84,1.1840056]
[1742986185545,1.1879235,631.34,630.84,1.1840056]
[1742986185744,1.1879235,631.33,630.84,1.1840056]
[1742986186045,1.1879235,631.32,630.84,1.1840056]
[1742986186242,1.1879235,631.31,630.84,1.1840056]
[1742986186442,1.176,631.34,630.84,1.1840056]
[1742986186639,1.18815404,631.33,630.84,1.1840056]
[1742986186844,1.18815404,631.32,630.84,1.1840056]
[1742986187045,1.18815404,631.31,630.84,1.1840056]
[1742986187245,1.176,631.34,630.87,1.1840056]
[1742986187445,1.188314,631.33,630.87,1.1840056]
[1742986187645,1.188314,631.32,630.87,1.1840056]
[1742986187846,1.188314,631.31,630.87,1.1840056]
[1742986188047,1.176,631.34,630.87,1.1840056]
[1742986188247,1.18834679,631.33,630.87,1.1840056]
[1742986188447,1.18834679,631.32,630.87,1.1840056]
[1742986188644,1.18834679,631.31,630.87,1.1840056]
[1742986188950,1.176,631.34,630.87,1.1840056]
[1742986189343,1.18857978,631.33,630.87,1.1840056]
[1742986189546,1.176,631.34,630.88,1.1840056]
[1742986189547,1.18857978,631.32,630.88,1.1840056]
[1742986189750,1.18857978,631.31,630.88,1.1840056]
[1742986189950,1.18857978,631.3,630.88,1.1840056]
[1742986190148,1.18882591,631.29,630.88,1.1840056]
[1742986190348,1.176,631.34,630.88,1.1840056]
[1742986190548,1.18912887,631.33,630.88,1.1840056]
[1742986190745,1.18912887,631.32,630.88,1.1840056]
[1742986190950,1.18912887,631.31,630.88,1.1840056]
[1742986191152,1.18912533,631.3,630.88,1.1840056]
[1742986191353,1.176,631.34,630.88,1.1840056]
[1742986191553,1.18939652,631.33,630.88,1.1840056]
[1742986191755,1.18939652,631.32,630.88,1.1840056]
[1742986191955,1.18939652,631.31,630.88,1.1840056]
[1742986192157,1.18942119,631.3,630.88,1.1840056]
[1742986192355,1.18942119,631.29,630.83,1.1840056]
[1742986192655,1.176,631.34,630.84,0.2635666]
[1742986192851,1.18975219,631.33,630.84,0.2635666]
[1742986193059,1.18975314,631.32,630.84,0.2635666]
[1742986193355,1.18975314,631.31,630.84,0.2635666]
[1742986193556,1.18975314,631.3,630.84,0.2635666]
[1742986193756,1.18975314,631.29,630.83,1.1840056]
[1742986193957,1.18975314,631.28,630.83,1.1840056]
[1742986194258,1.18975314,631.27,630.89,1.1840056]
[1742986194457,1.18975314,631.26,630.89,1.1840056]
[1742986194656,1.18975314,631.25,630.89,1.1840056]
[1742986194853,0.435,631.28,630.89,1.1840056]
[1742986195059,1.19061565,631.27,630.89,1.1840056]
[1742986195258,1.19061565,631.26,630.89,1.1840056]
[1742986195455,1.19061565,631.25,630.89,1.1840056]
[1742986195659,1.19061565,631.24,630.89,1.1840056]
[1742986195854,1.19061565,631.23,630.89,1.1840056]
[1742986196059,1.19061565,631.22,630.89,1.1840056]
[1742986196359,1.19061565,631.21,630.67,1.1840056]
[1742986196559,1.19061565,631.2,630.68,0.26361873]
[1742986196754,1.19061565,631.19,630.68,0.26361873]
[1742986196961,0.578,631.24,630.68,0.26361873]
[1742986197160,1.1916027,631.23,630.67,1.1840056]
[1742986197353,1.1916027,631.22,630.67,1.1840056]
[1742986197556,1.1916027,631.21,630.67,1.1840056]
[1742986197757,1.1916027,631.2,630.67,1.1840056]
[1742986198059,1.1916027,631.19,630.67,1.1840056]
[1742986198359,1.1916027,631.18,630.67,1.1840056]
[1742986198554,1.1916027,631.17,630.67,1.1840056]
[1742986198768,1.1916027,631.17,630.57,0.31717335]
[1742986198769,1.19286924,631.16,630.57,0.31717335]
[1742986199060,0.578,631.24,630.58,0.26365222]
[1742986199266,1.19287272,631.23,630.58,0.26365222]
[1742986199460,1.19287272,631.22,630.58,0.26365222]
[1742986199657,1.19287272,631.21,630.58,0.26365222]
[1742986199960,1.19287272,631.2,630.58,0.26365222]
[1742986200154,1.19287272,631.19,630.58,0.26365222]
[1742986200358,1.19287272,631.18,630.58,0.26365222]
[1742986200560,0.578,631.24,630.59,0.26366884]
[1742986200762,1.19464806,631.23,630.6,0.26366884]
[1742986200965,1.19464806,631.22,630.58,0.26366884]
[1742986201164,1.19464806,631.22,630.57,0.31717335]
[1742986201165,1.19464806,631.21,630.59,0.26366884]
[1742986201362,1.19464806,631.2,630.58,0.26366884]
[1742986201565,1.19464806,631.19,630.59,0.26366884]
[1742986201866,1.19464806,631.18,630.6,0.26366884]
[1742986202059,1.19464806,631.17,630.61,0.26366884]
[1742986202260,1.19464806,631.16,630.61,0.26366884]
[1742986202566,1.19464806,631.15,630.62,0.26366884]
[1742986202768,1.19464806,631.14,630.63,0.26366884]
[1742986202966,1.19464806,631.13,630.57,0.31717335]
[1742986203266,1.19464806,631.12,630.58,0.26363589]
[1742986203467,1.19464806,631.11,630.58,0.26363589]